bitfinex-derivatives/quotes_BTCF0:USTF0_20251217
["timestamp","ask_amount","ask_price","bid_price","bid_amount"]
[1766009058060,0.02470532,86007.0,86003.0,0.011631]
[1766009058372,0.02470532,86006.0,86003.0,0.011631]
[1766009058572,2e-08,86005.0,86003.0,0.011631]
[1766009058771,0.00017449,86009.0,86003.0,0.011631]
[1766009059268,0.00017449,86009.0,86001.0,0.0116313]
[1766009060873,0.00017449,86009.0,86003.0,0.0116311]
[1766009062469,0.00017449,86009.0,86000.0,0.0116315]
[1766009064863,0.00017449,86009.0,86001.0,0.0116313]
[1766009065171,0.00017449,86009.0,86003.0,0.0116311]
[1766009065675,0.00017449,86009.0,86001.0,0.0116314]
[1766009065858,0.00017449,86009.0,86002.0,0.0116312]
[1766009066458,0.00017449,86009.0,86005.0,0.0116309]
[1766009066665,9e-08,86009.0,86008.0,0.0116305]
[1766009067674,9e-08,86009.0,86006.0,0.0116307]
[1766009068471,9e-08,86009.0,86003.0,0.3608]
[1766009068969,9e-08,86009.0,86006.0,0.001]
[1766009070977,9e-08,86009.0,86006.0,0.0116306]
[1766009072869,9e-08,86009.0,86005.0,0.3608]
[1766009076281,0.00100009,86009.0,86005.0,0.3608]
[1766009077376,0.00100009,86009.0,85997.0,0.3608]
[1766009077576,0.00100009,86009.0,86000.0,0.0116316]
[1766009077782,0.00100009,86009.0,86002.0,0.0116313]
[1766009078381,0.00100009,86009.0,86004.0,0.0116309]
[1766009078680,9e-08,86009.0,86004.0,0.3724309]
[1766009078987,0.0116271,86033.0,86009.0,0.0116304]
[1766009079283,0.01195301,86037.0,86028.0,0.3608]
[1766009079471,0.0116264,86039.0,86028.0,0.3608]
[1766009079672,0.02344597,86039.0,86028.0,0.3608]
[1766009079973,0.0116266,86037.0,86028.0,0.3608]
[1766009081768,0.0126266,86037.0,86028.0,0.3608]
[1766009082472,0.0116268,86035.0,86028.0,0.3608]
[1766009083476,0.0116267,86036.0,86028.0,0.3608]
[1766009084078,0.3608,86035.0,86014.0,0.3724296]
[1766009084273,0.0116281,86027.0,86014.0,0.3724296]
[1766009084479,0.3608,86028.0,86014.0,0.3608]
[1766009084676,0.0116289,86020.0,86014.0,0.3608]
[1766009084879,0.0116289,86020.0,86000.0,0.05626528]
[1766009084880,0.3608,86015.0,86001.0,0.3608]
[1766009085074,0.3608,86002.0,86000.0,0.05626528]
[1766009085386,0.36062,86002.0,86000.0,0.05626528]
[1766009085587,0.36062,86002.0,85999.0,0.00011584]
[1766009085779,0.0116302,86011.0,85999.0,0.01174754]
[1766009086284,0.0116302,86011.0,85999.0,0.00011584]
[1766009086480,0.0116298,86014.0,85999.0,0.00011584]
[1766009086686,0.01163,86012.0,85999.0,0.00011584]
[1766009086987,0.3724297,86015.0,86000.0,0.0116315]
[1766009088077,0.0116299,86013.0,85999.0,0.00011584]
[1766009088586,0.0116299,86013.0,85999.0,0.01174754]
[1766009089979,0.0116302,86011.0,85999.0,0.01174754]
[1766009090179,0.0116302,86011.0,85999.0,0.00011584]
[1766009090486,0.0116298,86014.0,85999.0,0.00011584]
[1766009090687,0.0116298,86014.0,86000.0,0.0116315]
[1766009090985,0.0116298,86014.0,86002.0,0.0116313]
[1766009092278,0.3608,86015.0,86002.0,0.0116313]
[1766009093287,0.3608,86015.0,86003.0,0.011631]
[1766009094590,0.00017439,86017.0,86012.0,0.3608]
[1766009094886,0.3608,86029.0,86017.0,0.0116292]
[1766009095086,0.3608,86029.0,86022.0,0.3608]
[1766009095284,0.19606632,86030.0,86022.0,0.3608]
[1766009095483,0.18443882,86030.0,86022.0,0.3608]
[1766009095685,0.0116262,86040.0,86029.0,0.3608]
[1766009095886,0.0116236,86060.0,86036.0,0.3724267]
[1766009095887,0.00017439,86043.0,86036.0,0.3724267]
[1766009096085,0.00017439,86043.0,86036.0,0.3608]
[1766009098679,0.0116259,86042.0,86036.0,0.3608]
[1766009100191,0.00017439,86043.0,86036.0,0.3608]
[1766009101089,0.01180019,86043.0,86036.0,0.3608]
[1766009101280,0.0116261,86041.0,86036.0,0.3608]
[1766009101789,0.00017439,86043.0,86036.0,0.3608]
[1766009101991,0.00017439,86043.0,86025.0,0.00017439]
[1766009101992,0.0116274,86032.0,86025.0,9e-08]
[1766009102194,0.3608,86026.0,86025.0,9e-08]
[1766009104793,0.3618,86026.0,86025.0,9e-08]
[1766009105192,0.3608,86026.0,86025.0,9e-08]
[1766009105384,0.3618,86026.0,86025.0,9e-08]
[1766009107295,0.3618,86026.0,86009.0,0.3608]
[1766009107497,0.3608,86017.0,86009.0,0.0116303]
[1766009108485,0.3608,86017.0,86009.0,0.0136303]
[1766009108680,0.3608,86017.0,86011.0,0.0116301]
[1766009109283,0.00017439,86022.0,86011.0,0.0116301]
[1766009109790,0.3608,86019.0,86011.0,0.0116301]
[1766009111196,0.3608,86019.0,86011.0,0.0126301]
[1766009112295,0.3608,86019.0,86011.0,0.001]
[1766009113087,0.3608,86019.0,86012.0,0.01163]
[1766009114790,0.3608,86019.0,86009.0,0.0116302]
[1766009114997,0.3608,86019.0,86011.0,0.0116301]
[1766009115506,0.3608,86019.0,86007.0,0.0116306]
[1766009116803,0.3608,86019.0,86009.0,0.001]
[1766009117100,0.3608,86019.0,86009.0,0.0126302]
[1766009117299,0.3608,86019.0,86009.0,0.0116302]
[1766009117902,0.3608,86019.0,86010.0,0.0116301]
[1766009118098,0.3608,86019.0,86011.0,0.01163]
[1766009119302,0.3608,86019.0,86009.0,0.0126303]
[1766009120295,0.3608,86019.0,86009.0,0.0116303]
[1766009120494,0.3608,86019.0,86010.0,0.001]
[1766009121000,0.3608,86019.0,86013.0,0.0116297]
[1766009122001,0.3608,86019.0,86011.0,0.0116301]
[1766009122297,0.3608,86019.0,86012.0,0.0116299]
[1766009123591,0.3608,86019.0,86013.0,0.001]
[1766009124193,0.3608,86019.0,86012.0,0.0116299]
[1766009127003,0.3608,86019.0,86010.0,0.0116302]
[1766009128095,0.3608,86019.0,86004.0,0.00011584]
[1766009128297,0.3608,86019.0,86012.0,0.0116299]
[1766009128600,0.00017439,86022.0,86016.0,0.3608]
[1766009131595,0.00017439,86022.0,86016.0,0.3724293]
[1766009132707,0.00017439,86022.0,86016.0,0.3608]
[1766009133703,0.0116288,86021.0,86016.0,0.3608]
[1766009134502,0.00017439,86022.0,86016.0,0.3608]
[1766009135609,0.0116287,86021.0,86016.0,0.3608]
[1766009135814,0.00017439,86022.0,86016.0,0.3608]
[1766009136012,0.00017439,86022.0,86016.0,0.3724293]
[1766009136202,0.00017439,86022.0,86016.0,0.3608]
[1766009139610,0.01180309,86022.0,86016.0,0.3608]
[1766009140411,0.0116288,86021.0,86016.0,0.3608]
[1766009142615,0.00017439,86022.0,86016.0,0.3608]
[1766009144215,0.01180309,86022.0,86016.0,0.3608]
[1766009144418,0.0116288,86021.0,86016.0,0.3608]
[1766009144617,0.00017439,86022.0,86016.0,0.3608]
[1766009145214,0.01180309,86022.0,86016.0,0.3608]
[1766009146414,0.00017439,86022.0,86016.0,0.3608]
[1766009147215,0.01180299,86022.0,86016.0,0.3608]
[1766009147924,0.0116289,86021.0,86016.0,0.3608]
[1766009148617,0.00017439,86022.0,86005.0,0.3608]
[1766009148822,0.3724292,86018.0,86005.0,0.3608]
[1766009150122,0.3608,86010.0,86004.0,0.00011584]
[1766009151223,0.3724303,86010.0,86004.0,0.00011584]
[1766009152317,0.3608,86010.0,86005.0,0.001]
[1766009153318,0.3608,86010.0,86004.0,0.00011584]
[1766009155824,0.011631,86004.0,85997.0,0.72664]
[1766009156017,0.0116308,86006.0,85997.0,0.72664]
[1766009156814,0.0116315,86001.0,85997.0,0.014053]
[1766009157113,0.3608,86002.0,85997.0,1e-07]
[1766009157313,0.0116318,85999.0,85997.0,1e-07]
[1766009157516,0.3608,86002.0,85997.0,1e-07]
[1766009157517,0.0116314,86001.0,85997.0,1e-07]
[1766009157724,0.3724313,86002.0,85997.0,1e-07]
[1766009158132,0.0116316,86001.0,85997.0,1e-07]
[1766009159129,0.3608,86002.0,85997.0,1e-07]
[1766009161316,0.3724314,86002.0,85997.0,1e-07]
[1766009161920,0.0116318,85999.0,85986.0,0.05574589]
[1766009162123,0.00017439,86001.0,85986.0,0.05574589]
[1766009162324,0.00017439,86001.0,85986.0,0.06737929]
[1766009162725,0.00017439,86001.0,85989.0,0.0116331]
[1766009165225,0.0116345,85979.0,85927.0,0.3608]
[1766009165425,0.18446026,85955.0,85939.0,0.0116397]
[1766009165630,0.03536,85958.0,85940.0,0.18446026]
[1766009165829,0.03536,85958.0,85934.0,0.0116404]
[1766009165830,0.0001745,85971.0,85948.0,0.18446026]
[1766009166128,0.3608,85965.0,85952.0,0.3608]
[1766009166331,0.3608,85955.0,85945.0,0.36393725]
[1766009166836,0.3608,85955.0,85945.0,0.36093725]
[1766009167133,0.0116401,85937.0,85922.0,0.05449404]
[1766009167329,0.3608,85923.0,85914.0,0.3608]
[1766009167629,0.0001745,85938.0,85921.0,0.3608]
[1766009167833,0.0001745,85938.0,85929.0,0.3608]
[1766009168232,9.069e-05,85937.0,85929.0,0.3608]
[1766009168531,0.18446026,85950.0,85929.0,0.3608]
[1766009168532,0.0116358,85969.0,85936.0,0.3608]
[1766009168834,0.18446026,85970.0,85964.0,0.3608]
[1766009169027,0.0116355,85972.0,85964.0,0.3608]
[1766009169434,0.0116356,85970.0,85964.0,0.3608]
[1766009169734,0.3608,85965.0,85959.0,0.0001745]
[1766009170138,0.3608,85965.0,85931.0,0.3608]
[1766009170139,0.3608,85964.0,85931.0,0.3608]
[1766009170333,0.3608,85950.0,85939.0,0.3608]
[1766009170640,7.325e-05,85949.0,85939.0,0.3608]
[1766009172233,7.325e-05,85949.0,85931.0,0.3608]
[1766009172440,7.325e-05,85949.0,85939.0,0.3618]
[1766009172925,0.3608,85971.0,85947.0,0.3608]
[1766009173131,0.3608,85980.0,85965.0,0.3608]
[1766009173132,0.18446026,85970.0,85965.0,0.3608]
[1766009173336,0.0116351,85974.0,85965.0,0.3608]
[1766009174330,0.3608,85966.0,85949.0,0.3608]
[1766009174531,0.3608,85957.0,85943.0,0.0116392]
[1766009174840,0.3608,85957.0,85941.0,0.3608]
[1766009175038,0.3608,85957.0,85945.0,0.011639]
[1766009175537,0.3608,85957.0,85942.0,0.0116394]
[1766009175743,0.3608,85957.0,85941.0,0.3608]
[1766009175928,0.3608,85957.0,85941.0,0.3724395]
[1766009176444,0.3608,85957.0,85941.0,0.3734395]
[1766009177131,0.3608,85957.0,85941.0,0.001]
[1766009177339,0.3608,85957.0,85941.0,0.3618]
[1766009178043,4.5e-06,85960.0,85957.0,0.0116373]
[1766009179342,0.3608,85976.0,85962.0,0.0116367]
[1766009179541,0.3608,85976.0,85966.0,0.3608]
[1766009181746,0.3608,85976.0,85953.0,0.3608]
[1766009181747,0.3608,85968.0,85953.0,0.3724379]
[1766009182145,0.3608,85968.0,85953.0,0.3608]
[1766009183251,0.3608,85968.0,85955.0,0.0116376]
[1766009183438,0.3608,85968.0,85954.0,0.0116378]
[1766009184339,0.3608,85968.0,85953.0,0.3618]
[1766009184540,0.3608,85958.0,85950.0,0.00017037]
[1766009185742,0.0116352,85974.0,85950.0,0.00017037]
[1766009185743,0.40716847,85985.0,85955.0,0.3608]
[1766009185941,0.0116338,85984.0,85969.0,0.0116357]
[1766009186346,0.0116338,85984.0,85967.0,0.3608]
[1766009186738,0.011634,85982.0,85968.0,0.0116359]
[1766009187141,0.0001745,85984.0,85967.0,0.3609745]
[1766009187448,0.0118083,85984.0,85970.0,0.0116355]
[1766009187949,0.0118083,85984.0,85967.0,0.3736104]
[1766009188146,0.23088385,85980.0,85967.0,0.3619745]
[1766009188360,0.0116347,85977.0,85967.0,0.3619745]
[1766009188850,0.0116344,85979.0,85967.0,0.3619745]
[1766009189453,0.3724347,85977.0,85967.0,0.1953045]
[1766009189753,0.011635,85975.0,85955.0,0.3608]
[1766009189943,0.011635,85975.0,85962.0,0.0116366]
[1766009190452,0.011635,85975.0,85959.0,0.011637]
[1766009190853,0.0116352,85973.0,85959.0,0.011637]
[1766009191054,0.3608,85969.0,85958.0,0.0001745]
[1766009191352,0.3608,85969.0,85958.0,0.0118117]
[1766009191938,0.3608,85964.0,85958.0,0.0118117]
[1766009193055,0.3608,85964.0,85958.0,0.0001745]
[1766009196254,0.3608,85964.0,85956.0,0.0116375]
[1766009196452,0.3608,85964.0,85949.0,0.02967177]
[1766009196653,0.3608,85964.0,85950.0,0.0116383]
[1766009196857,0.3618,85964.0,85955.0,0.0116376]
[1766009197559,0.3608,85964.0,85955.0,0.0116376]
[1766009197750,0.3608,85964.0,85956.0,0.0116374]
[1766009198553,0.3608,85964.0,85960.0,0.011637]
[1766009198753,0.3608,85964.0,85957.0,0.0116373]
[1766009198952,0.3608,85964.0,85958.0,0.0116371]
[1766009200365,0.3618,85964.0,85955.0,0.0116376]
[1766009200567,0.23088385,85980.0,85947.0,0.39017177]
[1766009200568,0.04636847,85985.0,85977.0,0.0116346]
[1766009200762,0.04636847,85985.0,85984.0,0.3608]
[1766009203070,0.04836847,85985.0,85984.0,0.3608]
[1766009203461,0.04836847,85985.0,85984.0,0.19413]
[1766009203661,0.04836847,85985.0,85978.0,0.0116345]
[1766009204061,0.04836847,85985.0,85976.0,0.0001745]
[1766009205362,0.3608,85979.0,85976.0,0.0001745]
[1766009205557,0.04636847,85985.0,85975.0,0.3608]
[1766009205762,0.04636847,85985.0,85977.0,0.0116346]
[1766009206972,0.04636847,85985.0,85976.0,0.0116348]
[1766009207372,0.04636847,85985.0,85978.0,0.0116345]
[1766009208372,0.04736847,85985.0,85978.0,0.0116345]
[1766009208571,0.04736847,85985.0,85975.0,0.3608]
[1766009208770,0.04636847,85985.0,85975.0,0.3608]
[1766009208960,0.04736847,85985.0,85975.0,0.3608]
[1766009209569,0.04736847,85985.0,85978.0,0.0116345]
[1766009210068,0.04636847,85985.0,85978.0,0.0116345]
[1766009210968,0.0001745,85993.0,85984.0,0.3608]
[1766009211268,0.0116299,86013.0,85996.0,0.011632]
[1766009211461,0.02586751,86012.0,86008.0,0.3608]
[1766009211660,0.02586751,86011.0,86008.0,0.3608]
[1766009211863,0.00232511,86018.0,86008.0,0.3608]
[1766009212062,0.00232511,86018.0,86016.0,0.3608]
[1766009212571,0.00017439,86026.0,86016.0,0.3608]
[1766009212777,0.0116268,86036.0,86025.0,0.3608]
[1766009213476,0.02310227,86039.0,86025.0,0.3608]
[1766009213659,0.0116263,86039.0,86025.0,0.3608]
[1766009214266,0.3608,86036.0,86025.0,0.3608]
[1766009214575,0.0116269,86035.0,86025.0,0.3608]
[1766009216774,0.3608,86026.0,86012.0,0.3608]
[1766009217277,0.3608,86019.0,86009.0,0.0116303]
[1766009217976,0.3608,86019.0,86008.0,0.00017439]
[1766009217977,0.00017439,86023.0,86015.0,0.3608]
[1766009218375,0.00017439,86023.0,86015.0,0.3724294]
[1766009219477,0.00017439,86023.0,86015.0,0.3734294]
[1766009219882,0.00017439,86023.0,86015.0,0.3724294]
[1766009221179,0.00017439,86023.0,86017.0,0.0116292]
[1766009221479,0.3608,86032.0,86019.0,0.0116289]
[1766009222676,0.3608,86032.0,86015.0,0.3608]
[1766009222876,0.3608,86032.0,86025.0,0.0116281]
[1766009223081,0.3608,86032.0,86021.0,0.0116286]
[1766009223265,0.00017439,86034.0,86028.0,0.3608]
[1766009223471,0.36097439,86034.0,86020.0,0.0116288]
[1766009224169,0.00017439,86034.0,86028.0,0.3608]
[1766009225477,0.33851042,86050.0,86028.0,0.3608]
[1766009225478,0.3608,86073.0,86030.0,0.1164]
[1766009225682,0.01394145,86098.0,86071.0,0.011622]
[1766009225870,0.00232295,86098.0,86072.0,0.03572]
[1766009226069,0.00232295,86098.0,86095.0,0.3608]
[1766009226679,0.00232295,86098.0,86088.0,0.00017429]
[1766009226875,0.00232295,86098.0,86088.0,4.29e-06]
[1766009226876,0.00332295,86098.0,86088.0,4.29e-06]
[1766009228188,0.00232295,86098.0,86088.0,4.29e-06]
[1766009228485,0.00432295,86098.0,86088.0,4.29e-06]
[1766009228687,0.0116185,86097.0,86088.0,4.29e-06]
[1766009228884,0.00432295,86098.0,86088.0,4.29e-06]
[1766009231386,0.00432295,86098.0,86093.0,0.3608]
[1766009231886,0.00232295,86098.0,86093.0,0.3608]
[1766009232087,0.00432295,86098.0,86093.0,0.3608]
[1766009232282,0.00432295,86098.0,86088.0,4.29e-06]
[1766009232483,0.00232295,86098.0,86088.0,4.29e-06]
[1766009232691,0.00432295,86098.0,86088.0,4.29e-06]
[1766009236577,0.00432295,86098.0,86088.0,0.01162389]
[1766009236779,5e-08,86098.0,86093.0,0.0116189]
[1766009236987,5e-08,86098.0,86090.0,0.0116194]
[1766009238577,5e-08,86098.0,86088.0,4.29e-06]
[1766009238578,0.33851042,86100.0,86088.0,4.29e-06]
[1766009238787,0.3608,86101.0,86088.0,4.29e-06]
[1766009239086,0.372418,86101.0,86088.0,4.29e-06]
[1766009242496,0.0116183,86099.0,86088.0,4.29e-06]
[1766009243096,0.0116185,86097.0,86088.0,4.29e-06]
[1766009243296,0.0116182,86100.0,86088.0,4.29e-06]
[1766009243897,0.3608,86101.0,86088.0,0.01162389]
[1766009244192,0.3608,86101.0,86088.0,4.29e-06]
[1766009244580,0.3608,86101.0,86093.0,0.011619]
[1766009244787,0.3608,86101.0,86095.0,0.0116186]
[1766009245098,0.3608,86101.0,86097.0,0.0116185]
[1766009245691,0.3724161,86115.0,86102.0,0.0116177]
[1766009245889,0.3608,86115.0,86100.0,0.3608]
[1766009246091,0.0116165,86112.0,86100.0,0.3608]
[1766009246784,0.0116167,86111.0,86100.0,0.3608]
[1766009248284,0.0116167,86110.0,86100.0,0.3608]
[1766009248690,0.011617,86108.0,86100.0,0.3608]
[1766009248898,0.36097418,86115.0,86100.0,0.3608]
[1766009248899,0.0116163,86114.0,86100.0,0.372418]
[1766009250301,0.0116165,86112.0,86100.0,0.372418]
[1766009250496,0.0116166,86111.0,86100.0,0.3608]
[1766009251099,0.0116163,86113.0,86100.0,0.3608]
[1766009251600,0.0116162,86114.0,86101.0,0.0116179]
[1766009251899,0.02538727,86113.0,86101.0,0.0116179]
[1766009252099,0.0116162,86114.0,86101.0,0.0116179]
[1766009252396,0.02538731,86113.0,86101.0,0.0116179]
[1766009252595,0.02538731,86112.0,86102.0,0.0116177]
[1766009252786,0.3608,86133.0,86110.0,0.3608]
[1766009252996,0.3608,86133.0,86126.0,0.3608]
[1766009253388,0.00232187,86138.0,86127.0,0.0116144]
[1766009253594,0.00232187,86138.0,86126.0,0.3724145]
[1766009253994,0.00232187,86138.0,86133.0,0.3608]
[1766009255996,7e-08,86138.0,86134.0,0.0116135]
[1766009256303,7e-08,86138.0,86133.0,0.3608]
[1766009256304,5e-08,86141.0,86138.0,0.0116128]
[1766009259001,5e-08,86141.0,86137.0,0.3608]
[1766009261201,0.01151916,86156.0,86137.0,0.3608]
[1766009261202,0.0116108,86155.0,86140.0,0.0116126]
[1766009261502,0.0116109,86153.0,86148.0,0.3608]
[1766009263308,0.01143296,86156.0,86148.0,0.3608]
[1766009263507,0.011611,86153.0,86148.0,0.3608]
[1766009264107,0.36091156,86159.0,86148.0,0.3608]
[1766009264108,0.02327849,86156.0,86148.0,0.3608]
[1766009264309,0.0116106,86156.0,86148.0,0.3608]
[1766009264807,0.02526134,86155.0,86148.0,0.3608]
[1766009264998,0.02526134,86154.0,86148.0,0.3608]
[1766009265210,0.0116111,86152.0,86148.0,0.3608]
[1766009265601,0.02525979,86151.0,86148.0,0.3608]
[1766009265802,0.02525979,86150.0,86148.0,0.3608]
[1766009266001,0.02525979,86149.0,86148.0,0.3608]
[1766009266699,0.02525979,86149.0,86142.0,0.00017418]
[1766009266899,0.02525979,86148.0,86142.0,0.00017418]
[1766009267101,0.3608,86151.0,86142.0,0.00017418]
[1766009267301,0.02525949,86150.0,86142.0,0.00017418]
[1766009267611,0.02525949,86149.0,86142.0,0.00017418]
[1766009267810,0.3608,86151.0,86142.0,0.00017418]
[1766009268110,0.02525868,86150.0,86142.0,0.00017418]
[1766009268310,0.02525868,86149.0,86143.0,0.0116123]
[1766009268500,0.3608,86151.0,86143.0,0.0116123]
[1766009268699,0.02525949,86150.0,86143.0,0.0116123]
[1766009268900,0.02525949,86149.0,86143.0,0.0116123]
[1766009269100,0.3608,86151.0,86143.0,0.0116123]
[1766009269310,0.02525949,86150.0,86143.0,0.0116123]
[1766009269606,0.02525949,86149.0,86143.0,0.0116123]
[1766009269812,0.3608,86151.0,86142.0,0.00017418]
[1766009270108,0.02523649,86150.0,86142.0,0.00017418]
[1766009270300,0.02524036,86149.0,86142.0,0.00017418]
[1766009270500,0.3608,86151.0,86142.0,0.00017418]
[1766009270708,0.02524036,86150.0,86142.0,0.00017418]
[1766009270900,0.02524036,86149.0,86142.0,0.00017418]
[1766009271099,0.3608,86151.0,86142.0,0.00017418]
[1766009271299,0.02524036,86150.0,86142.0,0.00017418]
[1766009271502,0.02524036,86149.0,86142.0,0.00017418]
[1766009271703,0.3608,86151.0,86142.0,0.00017418]
[1766009271904,0.02524544,86150.0,86145.0,0.011612]
[1766009272105,0.3608,86151.0,86145.0,0.011612]
[1766009272311,0.3608,86151.0,86145.0,0.0116119]
[1766009272512,0.3724103,86158.0,86145.0,0.0116119]
[1766009272811,0.02525021,86157.0,86145.0,0.0116119]
[1766009273007,0.02525021,86156.0,86145.0,0.0116119]
[1766009273211,0.02525021,86155.0,86144.0,0.3608]
[1766009273412,0.3608,86158.0,86147.0,0.0116116]
[1766009273708,0.02525647,86157.0,86144.0,0.3608]
[1766009274011,0.02525647,86156.0,86144.0,0.3608]
[1766009274206,0.02525647,86155.0,86144.0,0.3608]
[1766009274517,0.02525647,86154.0,86146.0,0.0116118]
[1766009274809,0.3608,86158.0,86146.0,0.0116118]
[1766009275010,0.02526511,86157.0,86146.0,0.0116118]
[1766009275211,0.02526511,86156.0,86146.0,0.0116118]
[1766009275402,0.02526511,86155.0,86146.0,0.0116118]
[1766009275602,0.3608,86158.0,86146.0,0.0116118]
[1766009275806,0.02527455,86157.0,86144.0,0.3608]
[1766009276003,0.02527455,86156.0,86144.0,0.3608]
[1766009276208,0.3608,86158.0,86144.0,0.3608]
[1766009276408,0.02528024,86157.0,86145.0,0.011612]
[1766009276608,0.02528024,86156.0,86145.0,0.011612]
[1766009276809,0.3608,86158.0,86145.0,0.011612]
[1766009277116,0.02528024,86157.0,86145.0,0.011612]
[1766009277414,0.02528024,86156.0,86145.0,0.011612]
[1766009277610,0.02528024,86155.0,86145.0,0.011612]
[1766009277815,0.3608,86158.0,86145.0,0.011612]
[1766009278115,0.02528784,86157.0,86145.0,0.011612]
[1766009278314,0.3608,86158.0,86145.0,0.011612]
[1766009278315,0.02528784,86156.0,86145.0,0.011612]
[1766009278516,0.02528784,86155.0,86145.0,0.011612]
[1766009278706,0.02528784,86154.0,86145.0,0.011612]
[1766009278907,0.3608,86158.0,86145.0,0.011612]
[1766009279110,0.0252975,86157.0,86145.0,0.011612]
[1766009279309,0.0252975,86156.0,86145.0,0.011612]
[1766009279505,0.3608,86158.0,86145.0,0.011612]
[1766009279506,0.0252975,86155.0,86145.0,0.011612]
[1766009279710,0.0252975,86154.0,86145.0,0.011612]
[1766009280017,0.0252975,86153.0,86145.0,0.011612]
[1766009280222,0.02532426,86152.0,86144.0,0.3608]
[1766009280512,0.02532426,86152.0,86120.0,0.22990273]
[1766009280513,0.0116129,86139.0,86124.0,0.0116147]
[1766009280716,0.3608,86133.0,86126.0,0.0116144]
[1766009281510,0.00017418,86138.0,86127.0,0.3608]
[1766009281710,0.02535177,86137.0,86127.0,0.3608]
[1766009281914,0.02535177,86136.0,86129.0,0.0116141]
[1766009282116,0.02535177,86135.0,86129.0,0.0116141]
[1766009282416,0.00017418,86138.0,86129.0,0.0116141]
[1766009282417,0.02538042,86134.0,86129.0,0.0116141]
[1766009282618,0.02538042,86133.0,86129.0,0.0116141]
[1766009282819,2e-08,86132.0,86129.0,0.0116141]
[1766009283116,0.00017418,86138.0,86129.0,0.0116141]
[1766009283711,0.00017418,86138.0,86127.0,0.3608]
[1766009284018,0.00017418,86138.0,86130.0,0.011614]
[1766009284717,0.00017418,86138.0,86127.0,0.3724143]
[1766009286513,0.00017418,86138.0,86127.0,0.3608]
[1766009287409,0.3608,86128.0,86121.0,0.00017418]
[1766009287615,0.3608,86128.0,86124.0,0.0116147]
[1766009288021,0.3608,86128.0,86122.0,0.0116151]
[1766009289720,0.3608,86128.0,86124.0,0.0116148]
[1766009292917,0.3608,86128.0,86122.0,0.0116151]
[1766009293223,0.3608,86128.0,86121.0,0.00017418]
[1766009294019,0.3608,86128.0,86115.0,0.0116159]
[1766009294223,0.3608,86128.0,86117.0,0.0116157]
[1766009294420,0.3608,86128.0,86102.0,0.0116177]
[1766009294621,0.01197907,86130.0,86098.0,0.00232295]
[1766009294622,0.3608,86112.0,86098.0,0.00232295]
[1766009294820,0.3608,86112.0,86106.0,0.0116172]
[1766009295125,0.3608,86112.0,86098.0,0.00232295]
[1766009295126,0.3608,86112.0,86103.0,0.0116175]
[1766009296026,0.3608,86112.0,86106.0,0.0116172]
[1766009297209,0.3608,86112.0,86108.0,0.011617]
[1766009297415,0.3608,86112.0,86101.0,0.3608]
[1766009297615,0.3608,86112.0,86107.0,0.011617]
[1766009300425,0.3608,86112.0,86103.0,0.0116176]
[1766009301318,0.3608,86112.0,86104.0,0.0116174]
[1766009302926,0.3608,86112.0,86102.0,0.0116177]
[1766009304529,0.3608,86112.0,86102.0,0.0126177]
[1766009307436,0.3608,86112.0,86104.0,0.0116175]
[1766009308530,0.3608,86112.0,86106.0,0.0116172]
[1766009309522,0.3608,86112.0,86103.0,0.0116176]
[1766009309723,0.3608,86112.0,86104.0,0.0116174]
[1766009310026,0.3608,86114.0,86104.0,0.0116174]
[1766009312534,0.3608,86114.0,86106.0,0.0116172]
[1766009314432,0.3608,86114.0,86103.0,0.0116175]
[1766009316639,0.3608,86114.0,86106.0,0.0116172]
[1766009317631,0.3608,86114.0,86104.0,0.0116175]
[1766009319736,0.3608,86114.0,86102.0,0.0116178]
[1766009320340,0.3608,86114.0,86103.0,0.0116175]
[1766009322034,0.3608,86112.0,86103.0,0.0116175]
[1766009322641,0.3608,86112.0,86102.0,0.0116177]
[1766009325244,0.3608,86112.0,86103.0,0.0116175]
[1766009325927,0.0116159,86116.0,86103.0,0.0116175]
[1766009326133,0.3608,86114.0,86104.0,0.0116174]
[1766009327138,0.27152216,86204.0,86100.0,0.00017418]
[1766009327139,0.3608,86143.0,86110.0,0.7216]
[1766009327340,0.02532907,86142.0,86125.0,0.3608]
[1766009327639,0.02532907,86142.0,86138.0,0.0116128]
[1766009327640,7e-08,86141.0,86138.0,0.0116128]
[1766009327839,0.3608,86142.0,86129.0,0.3724141]
[1766009328141,0.00017418,86144.0,86136.0,0.3608]
[1766009331738,0.3724124,86143.0,86129.0,0.0116142]
[1766009331944,0.3608,86134.0,86129.0,0.0116142]
[1766009336839,0.3608,86134.0,86120.0,0.38937726]
[1766009337349,0.3724135,86134.0,86121.0,0.0116152]
[1766009337536,0.3608,86126.0,86120.0,0.02857726]
[1766009337742,0.3608,86126.0,86111.0,0.3608]
[1766009337743,0.3608,86126.0,86112.0,0.36456]
[1766009338539,0.3608,86126.0,86120.0,0.002]
[1766009339048,0.3608,86126.0,86112.0,0.36556]
[1766009339249,0.3608,86126.0,86119.0,0.0116155]
[1766009339750,0.3608,86126.0,86120.0,0.0116152]
[1766009339953,0.3608,86126.0,86113.0,0.0116163]
[1766009340548,0.3608,86126.0,86120.0,0.0116153]
[1766009341349,0.3608,86126.0,86112.0,0.36456]
[1766009342248,0.3608,86126.0,86117.0,0.0116156]
[1766009342550,0.3608,86126.0,86118.0,0.0116155]
[1766009342753,0.3608,86126.0,86112.0,0.001]
[1766009343956,0.3608,86126.0,86121.0,0.0116151]
[1766009347450,0.3608,86126.0,86119.0,0.0116155]
[1766009347652,0.3608,86126.0,86120.0,0.0116152]
[1766009354154,0.3608,86126.0,86111.0,0.38980906]
[1766009355249,0.3608,86126.0,86116.0,0.0116159]
[1766009357354,0.3608,86126.0,86116.0,0.0126159]
[1766009357851,0.3608,86126.0,86116.0,0.0116159]
[1766009358155,0.0116123,86143.0,86128.0,0.0116143]
[1766009358355,0.02481511,86142.0,86135.0,0.3608]
[1766009358653,0.3608,86138.0,86115.0,0.011616]
[1766009358856,0.3608,86127.0,86115.0,0.011616]
[1766009359653,0.3608,86127.0,86114.0,0.3608]
[1766009359957,0.3608,86127.0,86118.0,0.3724156]
[1766009360463,0.3608,86127.0,86118.0,0.3608]
[1766009361548,0.3608,86127.0,86118.0,0.3618]
[1766009362449,0.3608,86127.0,86119.0,0.0116155]
[1766009364056,0.3608,86127.0,86118.0,0.3628]
[1766009364263,0.3608,86127.0,86119.0,0.001]
[1766009365363,0.3608,86127.0,86119.0,0.002]